[Event "*** Titled Tuesday Blitz"]
[Site "Chess.com"]
[Date "2020.11.03"]
[Round "11"]
[White "emiliochess"]
[Black "tteshan"]
[Result "1/2-1/2"]
[WhiteElo "2259"]
[BlackElo "2353"]
[TimeControl "180+1"]
[EndTime "12:12:06 PST"]
[Termination "Game drawn - insufficient material"]

1. d4 {[%clk 0:03:00.9]} 1... d5 {[%clk 0:03:00]} 2. Bf4 {[%clk 0:03:00.4]} 2...
Nf6 {[%clk 0:02:59]} 3. e3 {[%clk 0:03:00.3]} 3... c5 {[%clk 0:02:58.9]} 4. c3
{[%clk 0:02:59.2]} 4... Nc6 {[%clk 0:02:59.2]} 5. Bd3 {[%clk 0:02:57.8]} 5... e6
{[%clk 0:02:59.3]} 6. Nf3 {[%clk 0:02:55.8]} 6... Bd6 {[%clk 0:02:59.3]} 7. Bg3
{[%clk 0:02:55.3]} 7... O-O {[%clk 0:02:58.6]} 8. Nbd2 {[%clk 0:02:55.3]} 8...
c4 {[%clk 0:02:46.9]} 9. Bc2 {[%clk 0:02:54.9]} 9... b5 {[%clk 0:02:47.2]} 10.
a3 {[%clk 0:02:54.2]} 10... a5 {[%clk 0:02:46.6]} 11. e4 {[%clk 0:02:54.2]}
11... dxe4 {[%clk 0:02:45.5]} 12. Nxe4 {[%clk 0:02:55.1]} 12... Nxe4 {[%clk
0:02:44.9]} 13. Bxe4 {[%clk 0:02:56]} 13... Bb7 {[%clk 0:02:44.9]} 14. Qe2
{[%clk 0:02:07.1]} 14... h6 {[%clk 0:02:31.5]} 15. O-O {[%clk 0:02:04.3]} 15...
Bxg3 {[%clk 0:02:30.8]} 16. hxg3 {[%clk 0:02:05.2]} 16... Qc7 {[%clk 0:02:28.1]}
17. Rae1 {[%clk 0:02:02.2]} 17... Ne7 {[%clk 0:02:28.1]} 18. Bb1 {[%clk
0:01:58.4]} 18... Rfd8 {[%clk 0:02:19.1]} 19. Ne5 {[%clk 0:01:56.1]} 19... b4
{[%clk 0:02:08.9]} 20. axb4 {[%clk 0:01:49.6]} 20... axb4 {[%clk 0:02:08.7]} 21.
f4 {[%clk 0:01:22.3]} 21... bxc3 {[%clk 0:02:07.6]} 22. bxc3 {[%clk 0:01:22]}
22... Ra3 {[%clk 0:01:56.9]} 23. f5 {[%clk 0:01:18]} 23... Rxc3 {[%clk
0:01:49.2]} 24. Nxf7 {[%clk 0:01:13]} 24... Rxg3 {[%clk 0:01:41.4]} 25. Rf2
{[%clk 0:00:56.9]} 25... Nxf5 {[%clk 0:01:16]} 26. Qxe6 {[%clk 0:00:49.1]} 26...
Qxf7 {[%clk 0:01:13.7]} 27. Qxf7+ {[%clk 0:00:44.3]} 27... Kxf7 {[%clk
0:01:13.6]} 28. Bxf5 {[%clk 0:00:44.8]} 28... Kg8 {[%clk 0:00:57.3]} 29. Be6+
{[%clk 0:00:39.4]} 29... Kh8 {[%clk 0:00:46.2]} 30. Bxc4 {[%clk 0:00:38.6]}
30... Rxd4 {[%clk 0:00:39.5]} 31. Re8+ {[%clk 0:00:31.3]} 31... Kh7 {[%clk
0:00:39.2]} 32. Bg8+ {[%clk 0:00:31.1]} 32... Kg6 {[%clk 0:00:37.6]} 33. Bf7+
{[%clk 0:00:17.3]} 33... Kg5 {[%clk 0:00:34.9]} 34. Re5+ {[%clk 0:00:16.3]}
34... Kh4 {[%clk 0:00:28.8]} 35. Kh2 {[%clk 0:00:16]} 35... Rxg2+ {[%clk
0:00:08.2]} 36. Rxg2 {[%clk 0:00:15.3]} 36... Bxg2 {[%clk 0:00:08.8]} 37. Kxg2
{[%clk 0:00:16.2]} 37... Rd2+ {[%clk 0:00:09.1]} 38. Kf3 {[%clk 0:00:16.6]}
38... g5 {[%clk 0:00:08.2]} 39. Re6 {[%clk 0:00:16.1]} 39... g4+ {[%clk
0:00:08.4]} 40. Ke3 {[%clk 0:00:15.9]} 40... Rd8 {[%clk 0:00:06.4]} 41. Rxh6+
{[%clk 0:00:15.8]} 41... Kg3 {[%clk 0:00:07]} 42. Rg6 {[%clk 0:00:15.9]} 42...
Rd7 {[%clk 0:00:07]} 43. Be6 {[%clk 0:00:15.4]} 43... Re7 {[%clk 0:00:07]} 44.
Kd2 {[%clk 0:00:15.1]} 44... Kf2 {[%clk 0:00:04.3]} 45. Bxg4 {[%clk 0:00:14.9]}
45... Rf7 {[%clk 0:00:03.5]} 46. Kd3 {[%clk 0:00:14.4]} 46... Rf4 {[%clk
0:00:03.7]} 47. Be6 {[%clk 0:00:14.3]} 47... Rf8 {[%clk 0:00:03.9]} 48. Bd5
{[%clk 0:00:14.4]} 48... Rf4 {[%clk 0:00:04.3]} 49. Rg2+ {[%clk 0:00:14.2]}
49... Kf1 {[%clk 0:00:04.6]} 50. Ra2 {[%clk 0:00:13.9]} 50... Rf5 {[%clk
0:00:03.7]} 51. Be4 {[%clk 0:00:14.2]} 51... Rf8 {[%clk 0:00:03.5]} 52. Ke3
{[%clk 0:00:14.5]} 52... Kg1 {[%clk 0:00:03.5]} 53. Ra1+ {[%clk 0:00:13.8]}
53... Kh2 {[%clk 0:00:03.6]} 54. Rh1+ {[%clk 0:00:14.3]} 54... Kg3 {[%clk
0:00:04.1]} 55. Rg1+ {[%clk 0:00:14.8]} 55... Kh4 {[%clk 0:00:04.6]} 56. Kd4
{[%clk 0:00:13.7]} 56... Kh5 {[%clk 0:00:04.6]} 57. Ke5 {[%clk 0:00:14.1]} 57...
Re8+ {[%clk 0:00:04.6]} 58. Kf4 {[%clk 0:00:14.5]} 58... Rf8+ {[%clk 0:00:05.2]}
59. Bf5 {[%clk 0:00:15]} 59... Kh6 {[%clk 0:00:05.7]} 60. Rg6+ {[%clk
0:00:14.8]} 60... Kh5 {[%clk 0:00:05.8]} 61. Rg7 {[%clk 0:00:13.2]} 61... Rf6
{[%clk 0:00:05.8]} 62. Rh7+ {[%clk 0:00:11.8]} 62... Rh6 {[%clk 0:00:06.2]} 63.
Rg7 {[%clk 0:00:11.7]} 63... Ra6 {[%clk 0:00:06.3]} 64. Rh7+ {[%clk 0:00:11.5]}
64... Rh6 {[%clk 0:00:05.4]} 65. Ra7 {[%clk 0:00:11.4]} 65... Rb6 {[%clk
0:00:05.5]} 66. Ra1 {[%clk 0:00:11.3]} 66... Rb4+ {[%clk 0:00:05.5]} 67. Be4
{[%clk 0:00:11.8]} 67... Kh6 {[%clk 0:00:05.8]} 68. Kf5 {[%clk 0:00:12]} 68...
Rb5+ {[%clk 0:00:05.7]} 69. Kf6 {[%clk 0:00:12.4]} 69... Rb6+ {[%clk 0:00:05.6]}
70. Ke5 {[%clk 0:00:12.9]} 70... Kg5 {[%clk 0:00:04.7]} 71. Bd5 {[%clk
0:00:13.1]} 71... Kg4 {[%clk 0:00:04.1]} 72. Rg1+ {[%clk 0:00:13.7]} 72... Kh3
{[%clk 0:00:04.4]} 73. Kf4 {[%clk 0:00:13.5]} 73... Rf6+ {[%clk 0:00:04.6]} 74.
Kg5 {[%clk 0:00:13.3]} 74... Rf2 {[%clk 0:00:04.5]} 75. Be4 {[%clk 0:00:12.7]}
75... Rf8 {[%clk 0:00:04.5]} 76. Bg6 {[%clk 0:00:11.3]} 76... Ra8 {[%clk
0:00:03.6]} 77. Rg4 {[%clk 0:00:11.6]} 77... Ra5+ {[%clk 0:00:03.4]} 78. Bf5
{[%clk 0:00:12.1]} 78... Kh2 {[%clk 0:00:04]} 79. Ra4 {[%clk 0:00:11.9]} 79...
Rxa4 {[%clk 0:00:04.2]} 80. Kf6 {[%clk 0:00:12]} 80... Rf4 {[%clk 0:00:04]} 81.
Kg5 {[%clk 0:00:12.9]} 81... Rxf5+ {[%clk 0:00:04.2]} 82. Kxf5 {[%clk
0:00:13.8]} 1/2-1/2

[Event "*** Titled Tuesday Blitz"]
[Site "Chess.com"]
[Date "2020.11.03"]
[Round "11"]
[White "crazy_but_lazy"]
[Black "dosto07"]
[Result "1-0"]
[WhiteElo "2467"]
[BlackElo "2357"]
[TimeControl "180+1"]
[EndTime "12:12:15 PST"]
[Termination "crazy_but_lazy won on time"]

1. Nf3 {[%clk 0:03:00.9]} 1... d5 {[%clk 0:02:58.9]} 2. c4 {[%clk 0:02:59.1]}
2... d4 {[%clk 0:02:58.1]} 3. e3 {[%clk 0:02:59.4]} 3... Nc6 {[%clk 0:02:56.6]}
4. exd4 {[%clk 0:02:56.8]} 4... Nxd4 {[%clk 0:02:56.3]} 5. Nxd4 {[%clk
0:02:56.9]} 5... Qxd4 {[%clk 0:02:55.9]} 6. d3 {[%clk 0:02:57.3]} 6... Nh6
{[%clk 0:02:39.2]} 7. Nc3 {[%clk 0:02:41.3]} 7... c6 {[%clk 0:02:38.4]} 8. Be3
{[%clk 0:02:40.7]} 8... Qd8 {[%clk 0:02:35.8]} 9. d4 {[%clk 0:02:30.1]} 9... Nf5
{[%clk 0:02:34.7]} 10. Qf3 {[%clk 0:02:29.1]} 10... Nxd4 {[%clk 0:02:22.8]} 11.
Bxd4 {[%clk 0:02:29.2]} 11... Qxd4 {[%clk 0:02:22]} 12. Rd1 {[%clk 0:02:25.9]}
12... Qe5+ {[%clk 0:02:14.6]} 13. Be2 {[%clk 0:02:25.9]} 13... g6 {[%clk
0:02:09.3]} 14. O-O {[%clk 0:02:26]} 14... Bg7 {[%clk 0:02:09.3]} 15. Rfe1
{[%clk 0:02:26.4]} 15... O-O {[%clk 0:02:07.1]} 16. Bd3 {[%clk 0:02:20.9]} 16...
Qc7 {[%clk 0:01:53]} 17. Qe3 {[%clk 0:02:11.3]} 17... Be6 {[%clk 0:01:48.4]} 18.
Ne4 {[%clk 0:02:04.2]} 18... Bf5 {[%clk 0:01:38.4]} 19. Nc5 {[%clk 0:02:01]}
19... Bxd3 {[%clk 0:01:31.8]} 20. Rxd3 {[%clk 0:02:01.9]} 20... Rad8 {[%clk
0:01:26.9]} 21. b3 {[%clk 0:01:52.2]} 21... e6 {[%clk 0:01:24.5]} 22. Red1
{[%clk 0:01:48.9]} 22... Rxd3 {[%clk 0:01:21.9]} 23. Qxd3 {[%clk 0:01:49.5]}
23... Be5 {[%clk 0:01:08]} 24. g3 {[%clk 0:01:44]} 24... Kg7 {[%clk 0:01:07.6]}
25. Qd7 {[%clk 0:01:32.8]} 25... Qxd7 {[%clk 0:00:55.6]} 26. Rxd7 {[%clk
0:01:31.6]} 26... Re8 {[%clk 0:00:46.2]} 27. Rxb7 {[%clk 0:01:30.5]} 27... Bd4
{[%clk 0:00:43.2]} 28. Nd7 {[%clk 0:01:25.9]} 28... e5 {[%clk 0:00:39.6]} 29. c5
{[%clk 0:00:53.8]} 29... Re7 {[%clk 0:00:35.8]} 30. b4 {[%clk 0:00:52.2]} 30...
a6 {[%clk 0:00:29.9]} 31. a4 {[%clk 0:00:46.2]} 31... e4 {[%clk 0:00:24.1]} 32.
Kf1 {[%clk 0:00:35.1]} 32... e3 {[%clk 0:00:18]} 33. fxe3 {[%clk 0:00:36]} 33...
Rxe3 {[%clk 0:00:17.2]} 34. Nb8 {[%clk 0:00:31.7]} 34... a5 {[%clk 0:00:14.7]}
35. bxa5 {[%clk 0:00:30.1]} 35... Bxc5 {[%clk 0:00:13.7]} 36. a6 {[%clk
0:00:27.5]} 36... Ra3 {[%clk 0:00:12]} 37. Nxc6 {[%clk 0:00:17.3]} 37... Rxa4
{[%clk 0:00:11.7]} 38. Rb5 {[%clk 0:00:14.3]} 38... Ra1+ {[%clk 0:00:08.7]} 39.
Kg2 {[%clk 0:00:12.7]} 39... Bg1 {[%clk 0:00:09.1]} 40. Ra5 {[%clk 0:00:12.2]}
40... Rxa5 {[%clk 0:00:07.4]} 41. Nxa5 {[%clk 0:00:13.1]} 41... Bb6 {[%clk
0:00:07.1]} 42. Nc6 {[%clk 0:00:13]} 42... Kf6 {[%clk 0:00:07.3]} 43. a7 {[%clk
0:00:13.4]} 43... Bxa7 {[%clk 0:00:06.4]} 44. Nxa7 {[%clk 0:00:14.3]} 44... Ke5
{[%clk 0:00:06.7]} 45. Nc6+ {[%clk 0:00:13.5]} 45... Ke4 {[%clk 0:00:06.5]} 46.
Nd8 {[%clk 0:00:08.6]} 46... f5 {[%clk 0:00:06.7]} 47. Ne6 {[%clk 0:00:09]}
47... Ke5 {[%clk 0:00:05.8]} 48. Nf8 {[%clk 0:00:08.8]} 48... Kf6 {[%clk
0:00:06.7]} 49. Nxh7+ {[%clk 0:00:08.5]} 49... Kg7 {[%clk 0:00:07.6]} 50. Ng5
{[%clk 0:00:09.1]} 50... Kf6 {[%clk 0:00:08.1]} 51. h4 {[%clk 0:00:09.8]} 51...
Ke5 {[%clk 0:00:07.8]} 52. Kf3 {[%clk 0:00:10.2]} 52... Kf6 {[%clk 0:00:07.1]}
53. Kf4 {[%clk 0:00:11.1]} 53... Kg7 {[%clk 0:00:07.8]} 54. Nf3 {[%clk
0:00:11.8]} 54... Kf6 {[%clk 0:00:07.9]} 55. Ne5 {[%clk 0:00:12.3]} 55... Kg7
{[%clk 0:00:06.1]} 56. Kg5 {[%clk 0:00:12.7]} 56... Kh7 {[%clk 0:00:05.2]} 57.
Nxg6 {[%clk 0:00:12.6]} 57... Kg7 {[%clk 0:00:06.1]} 58. Nf4 {[%clk 0:00:12.6]}
58... Kh7 {[%clk 0:00:07]} 59. Kxf5 {[%clk 0:00:13]} 59... Kg7 {[%clk
0:00:07.4]} 60. Ne2 {[%clk 0:00:13.9]} 60... Kh6 {[%clk 0:00:07.5]} 61. Nc3
{[%clk 0:00:14.8]} 61... Kh5 {[%clk 0:00:07.5]} 62. Kf4 {[%clk 0:00:13.8]} 62...
Kh6 {[%clk 0:00:07]} 63. g4 {[%clk 0:00:14.7]} 63... Kg6 {[%clk 0:00:07.4]} 64.
Ne2 {[%clk 0:00:15.6]} 64... Kh6 {[%clk 0:00:08.3]} 65. Ng3 {[%clk 0:00:16.5]}
65... Kg6 {[%clk 0:00:08.7]} 66. Nh1 {[%clk 0:00:17.4]} 66... Kh6 {[%clk
0:00:09.4]} 67. Nf2 {[%clk 0:00:18.3]} 67... Kg6 {[%clk 0:00:09.7]} 68. Nd1
{[%clk 0:00:19.2]} 68... Kh6 {[%clk 0:00:10]} 69. Nc3 {[%clk 0:00:20.1]} 69...
Kg6 {[%clk 0:00:10.5]} 70. Ke5 {[%clk 0:00:20.3]} 70... Kh6 {[%clk 0:00:11.1]}
71. Kf6 {[%clk 0:00:21]} 71... Kh7 {[%clk 0:00:10.9]} 72. g5 {[%clk 0:00:21.6]}
72... Kg8 {[%clk 0:00:10.2]} 73. g6 {[%clk 0:00:21.9]} 73... Kh8 {[%clk
0:00:10.2]} 74. g7+ {[%clk 0:00:18.9]} 74... Kg8 {[%clk 0:00:07.8]} 75. Nd5
{[%clk 0:00:15.1]} 75... Kh7 {[%clk 0:00:07]} 76. Ne7 {[%clk 0:00:11.2]} 76...
Kh6 {[%clk 0:00:06.1]} 77. g8=Q {[%clk 0:00:09.4]} 1-0

[Event "*** Titled Tuesday Blitz"]
[Site "Chess.com"]
[Date "2020.11.03"]
[Round "11"]
[White "Oglob71"]
[Black "goldenpuppy"]
[Result "0-1"]
[WhiteElo "2463"]
[BlackElo "2389"]
[TimeControl "180+1"]
[EndTime "12:12:17 PST"]
[Termination "goldenpuppy won by checkmate"]

1. d4 {[%clk 0:03:00.9]} 1... Nf6 {[%clk 0:02:59.3]} 2. Nf3 {[%clk 0:02:51.9]}
2... e6 {[%clk 0:02:58.3]} 3. e3 {[%clk 0:02:51.2]} 3... c5 {[%clk 0:02:58.3]}
4. Bd3 {[%clk 0:02:51.1]} 4... d5 {[%clk 0:02:58.3]} 5. c3 {[%clk 0:02:50.5]}
5... Nc6 {[%clk 0:02:58.2]} 6. Nbd2 {[%clk 0:02:50]} 6... b6 {[%clk 0:02:58.7]}
7. O-O {[%clk 0:02:49.5]} 7... Bb7 {[%clk 0:02:59.3]} 8. Qe2 {[%clk 0:02:49.3]}
8... Be7 {[%clk 0:02:59.5]} 9. Re1 {[%clk 0:02:48]} 9... O-O {[%clk 0:02:59.5]}
10. Ba6 {[%clk 0:02:47.7]} 10... Qc7 {[%clk 0:02:56.9]} 11. Bxb7 {[%clk
0:02:43.2]} 11... Qxb7 {[%clk 0:02:57.8]} 12. dxc5 {[%clk 0:02:42.2]} 12... Bxc5
{[%clk 0:02:56.8]} 13. e4 {[%clk 0:02:42.7]} 13... dxe4 {[%clk 0:02:56.4]} 14.
Nxe4 {[%clk 0:02:42.2]} 14... Nxe4 {[%clk 0:02:57.3]} 15. Qxe4 {[%clk
0:02:41.6]} 15... Rfd8 {[%clk 0:02:35.8]} 16. Qg4 {[%clk 0:02:40.8]} 16... Ne7
{[%clk 0:02:29.4]} 17. Bg5 {[%clk 0:02:36.1]} 17... Rd5 {[%clk 0:02:25]} 18.
Bxe7 {[%clk 0:02:33.5]} 18... Qxe7 {[%clk 0:02:24.2]} 19. h4 {[%clk 0:02:32.8]}
19... Rad8 {[%clk 0:02:23.3]} 20. b4 {[%clk 0:02:26.8]} 20... Bd6 {[%clk
0:02:19.6]} 21. g3 {[%clk 0:02:26.9]} 21... Bb8 {[%clk 0:02:18.3]} 22. Qe4
{[%clk 0:02:24.5]} 22... Qf6 {[%clk 0:02:17.4]} 23. Re3 {[%clk 0:02:21.8]} 23...
a5 {[%clk 0:02:12.5]} 24. Ng5 {[%clk 0:02:18.5]} 24... g6 {[%clk 0:02:10.5]} 25.
Rf3 {[%clk 0:02:18.5]} 25... Rf5 {[%clk 0:02:06.4]} 26. Rxf5 {[%clk 0:02:15]}
26... exf5 {[%clk 0:02:06.3]} 27. Qc4 {[%clk 0:02:12.9]} 27... axb4 {[%clk
0:02:05.6]} 28. Qxb4 {[%clk 0:02:11.9]} 28... Be5 {[%clk 0:02:01.7]} 29. Rc1
{[%clk 0:02:10.1]} 29... f4 {[%clk 0:02:01.2]} 30. Ne4 {[%clk 0:02:08.4]} 30...
Qf5 {[%clk 0:01:58.9]} 31. Qxb6 {[%clk 0:02:05.4]} 31... Re8 {[%clk 0:01:49.7]}
32. Qc6 {[%clk 0:02:04.3]} 32... Rc8 {[%clk 0:01:43.6]} 33. Qd5 {[%clk
0:02:01.7]} 33... f3 {[%clk 0:01:33.6]} 34. Nd2 {[%clk 0:01:52.8]} 34... Qf6
{[%clk 0:01:01.9]} 35. Qxf3 {[%clk 0:01:49.9]} 35... Qb6 {[%clk 0:01:00.2]} 36.
c4 {[%clk 0:01:42.5]} 36... Qb2 {[%clk 0:00:59.1]} 37. Nb3 {[%clk 0:01:40.6]}
37... Qxa2 {[%clk 0:00:56.9]} 38. c5 {[%clk 0:01:40.4]} 38... Rb8 {[%clk
0:00:52.4]} 39. Qd5 {[%clk 0:01:30.9]} 39... Bb2 {[%clk 0:00:47.8]} 40. c6
{[%clk 0:01:17.5]} 40... Bxc1 {[%clk 0:00:44.1]} 41. c7 {[%clk 0:01:17.2]} 41...
Rf8 {[%clk 0:00:40.6]} 42. Qd8 {[%clk 0:01:05.2]} 42... Qa6 {[%clk 0:00:29.5]}
43. Nxc1 {[%clk 0:01:01.4]} 43... Qc6 {[%clk 0:00:27.8]} 44. Ne2 {[%clk
0:00:58.1]} 44... Qe8 {[%clk 0:00:25.6]} 45. Qd2 {[%clk 0:00:55.9]} 45... Qc8
{[%clk 0:00:22.9]} 46. Qd6 {[%clk 0:00:53.2]} 46... Re8 {[%clk 0:00:21.2]} 47.
Nf4 {[%clk 0:00:52.3]} 47... Qb7 {[%clk 0:00:19.9]} 48. Kh2 {[%clk 0:00:51.2]}
48... Re1 {[%clk 0:00:18.1]} 49. Qd8+ {[%clk 0:00:47]} 49... Kg7 {[%clk
0:00:18.5]} 50. Qd4+ {[%clk 0:00:45.6]} 50... Kh6 {[%clk 0:00:17.5]} 51. Ng2
{[%clk 0:00:42.3]} 51... Re8 {[%clk 0:00:16]} 52. Qd7 {[%clk 0:00:38.6]} 52...
Rc8 {[%clk 0:00:15.1]} 53. Qxf7 {[%clk 0:00:38.3]} 53... Rxc7 {[%clk 0:00:15.4]}
54. Qf8+ {[%clk 0:00:38]} 54... Rg7 {[%clk 0:00:13.3]} 55. Nf4 {[%clk
0:00:35.3]} 55... Qf7 {[%clk 0:00:12.5]} 56. Qc5 {[%clk 0:00:33.3]} 56... Rg8
{[%clk 0:00:12.2]} 57. Qg5+ {[%clk 0:00:31.6]} 57... Kg7 {[%clk 0:00:12.5]} 58.
Nh5+ {[%clk 0:00:28.8]} 58... Kf8 {[%clk 0:00:12.7]} 59. Qd8+ {[%clk 0:00:28]}
59... Qe8 {[%clk 0:00:12.8]} 60. Qd6+ {[%clk 0:00:27.8]} 60... Qe7 {[%clk
0:00:12.8]} 61. Qf4+ {[%clk 0:00:24.9]} 61... Ke8 {[%clk 0:00:10.1]} 62. Qb8+
{[%clk 0:00:23.7]} 62... Qd8 {[%clk 0:00:08.8]} 63. Qb5+ {[%clk 0:00:21]} 63...
Kf7 {[%clk 0:00:08.3]} 64. Qc4+ {[%clk 0:00:18.7]} 64... Ke7 {[%clk 0:00:08.6]}
65. Qe4+ {[%clk 0:00:15.6]} 65... Kd7 {[%clk 0:00:08.7]} 66. Nf4 {[%clk
0:00:14.2]} 66... Re8 {[%clk 0:00:08.2]} 67. Qd5+ {[%clk 0:00:14.2]} 67... Kc8
{[%clk 0:00:08.4]} 68. Qc6+ {[%clk 0:00:13.8]} 68... Kb8 {[%clk 0:00:08.7]} 69.
Qb5+ {[%clk 0:00:13.5]} 69... Kc7 {[%clk 0:00:08]} 70. h5 {[%clk 0:00:13.9]}
70... Qd6 {[%clk 0:00:07.6]} 71. Qc4+ {[%clk 0:00:12.9]} 71... Qc6 {[%clk
0:00:07.6]} 72. Qf7+ {[%clk 0:00:12.5]} 72... Kb6 {[%clk 0:00:07.9]} 73. hxg6
{[%clk 0:00:12.6]} 73... hxg6 {[%clk 0:00:07.8]} 74. Nxg6 {[%clk 0:00:12.6]}
74... Re6 {[%clk 0:00:07.9]} 75. Kh3 {[%clk 0:00:10.5]} 75... Rxg6 {[%clk
0:00:08.2]} 76. Qb3+ {[%clk 0:00:10]} 76... Kc7 {[%clk 0:00:08.2]} 77. g4 {[%clk
0:00:10.3]} 77... Qh1+ {[%clk 0:00:07.3]} 78. Kg3 {[%clk 0:00:10]} 78... Qg1+
{[%clk 0:00:07.9]} 79. Kf3 {[%clk 0:00:10]} 79... Qxg4+ {[%clk 0:00:08.4]} 80.
Ke3 {[%clk 0:00:10.3]} 80... Re6+ {[%clk 0:00:08.7]} 81. Kd2 {[%clk 0:00:10.2]}
81... Qe2+ {[%clk 0:00:08.9]} 82. Kc1 {[%clk 0:00:10.2]} 82... Rc6+ {[%clk
0:00:09.4]} 83. Kb1 {[%clk 0:00:09.2]} 83... Rb6 {[%clk 0:00:09.9]} 84. Qxb6+
{[%clk 0:00:08.3]} 84... Kxb6 {[%clk 0:00:10.2]} 85. f4 {[%clk 0:00:07.4]} 85...
Kc5 {[%clk 0:00:11.1]} 86. f5 {[%clk 0:00:07.1]} 86... Kb4 {[%clk 0:00:12]} 87.
f6 {[%clk 0:00:07.5]} 87... Kb3 {[%clk 0:00:12.9]} 88. f7 {[%clk 0:00:07.8]}
88... Qe1# {[%clk 0:00:13.4]} 0-1

[Event "*** Titled Tuesday Blitz"]
[Site "Chess.com"]
[Date "2020.11.03"]
[Round "11"]
[White "lefonghua"]
[Black "Dinamo3"]
[Result "1/2-1/2"]
[WhiteElo "2339"]
[BlackElo "2406"]
[TimeControl "180+1"]
[EndTime "12:12:19 PST"]
[Termination "Game drawn - insufficient material"]

1. d4 {[%clk 0:03:00.9]} 1... Nf6 {[%clk 0:02:59.8]} 2. c4 {[%clk 0:03:01.3]}
2... g6 {[%clk 0:03:00]} 3. Nc3 {[%clk 0:03:01.6]} 3... Bg7 {[%clk 0:03:00.5]}
4. e4 {[%clk 0:03:01.8]} 4... O-O {[%clk 0:03:01]} 5. f4 {[%clk 0:03:02.3]} 5...
d6 {[%clk 0:02:56.9]} 6. Nf3 {[%clk 0:03:02.2]} 6... Na6 {[%clk 0:02:57.4]} 7.
Be2 {[%clk 0:03:02]} 7... e5 {[%clk 0:02:57.7]} 8. fxe5 {[%clk 0:03:02.9]} 8...
dxe5 {[%clk 0:02:58.1]} 9. d5 {[%clk 0:03:03.5]} 9... Nc5 {[%clk 0:02:58.3]} 10.
Bg5 {[%clk 0:03:03.9]} 10... h6 {[%clk 0:02:55.6]} 11. Bxf6 {[%clk 0:03:04.2]}
11... Bxf6 {[%clk 0:02:55.9]} 12. b4 {[%clk 0:03:04]} 12... Na6 {[%clk
0:02:55.3]} 13. a3 {[%clk 0:02:59.2]} 13... Bg7 {[%clk 0:02:44.3]} 14. c5 {[%clk
0:02:53.7]} 14... Bg4 {[%clk 0:02:39.7]} 15. O-O {[%clk 0:02:41.4]} 15... f5
{[%clk 0:02:37]} 16. h3 {[%clk 0:02:36.2]} 16... Bh5 {[%clk 0:02:33.7]} 17. Qb3
{[%clk 0:02:22.5]} 17... Kh7 {[%clk 0:02:31.6]} 18. Rad1 {[%clk 0:02:18.7]}
18... f4 {[%clk 0:02:23]} 19. c6 {[%clk 0:02:04.9]} 19... Qc8 {[%clk 0:02:07.9]}
20. Bxa6 {[%clk 0:01:38.3]} 20... bxa6 {[%clk 0:02:07.7]} 21. Na4 {[%clk
0:01:36.8]} 21... g5 {[%clk 0:02:07]} 22. Nc5 {[%clk 0:01:34.6]} 22... g4 {[%clk
0:02:06.8]} 23. hxg4 {[%clk 0:01:32.9]} 23... Qxg4 {[%clk 0:02:06.8]} 24. Ne6
{[%clk 0:01:28]} 24... Rf7 {[%clk 0:02:06]} 25. d6 {[%clk 0:01:12.7]} 25... cxd6
{[%clk 0:02:05.4]} 26. Rxd6 {[%clk 0:01:13.3]} 26... Rg8 {[%clk 0:01:57.7]} 27.
Rf2 {[%clk 0:01:08.7]} 27... Bf6 {[%clk 0:01:50.5]} 28. c7 {[%clk 0:00:56.6]}
28... Re7 {[%clk 0:01:38.8]} 29. Rd8 {[%clk 0:00:47.2]} 29... Rxc7 {[%clk
0:01:28.6]} 30. Nxc7 {[%clk 0:00:41.7]} 30... Bxd8 {[%clk 0:01:28.5]} 31. Nd5
{[%clk 0:00:32.8]} 31... Rg7 {[%clk 0:00:59.5]} 32. Nxe5 {[%clk 0:00:29.2]}
32... Qg5 {[%clk 0:00:46.8]} 33. Nf3 {[%clk 0:00:28.5]} 33... Qg3 {[%clk
0:00:46.5]} 34. Qc3 {[%clk 0:00:23.9]} 34... Bf7 {[%clk 0:00:34.1]} 35. Nf6+
{[%clk 0:00:20.1]} 35... Kh8 {[%clk 0:00:33.9]} 36. Nd5 {[%clk 0:00:17.5]} 36...
Bxd5 {[%clk 0:00:33]} 37. exd5 {[%clk 0:00:18.4]} 37... Bb6 {[%clk 0:00:33.4]}
38. Qc8+ {[%clk 0:00:17.2]} 38... Kh7 {[%clk 0:00:33.7]} 39. Qf5+ {[%clk
0:00:17.4]} 39... Qg6 {[%clk 0:00:33.6]} 40. Qxg6+ {[%clk 0:00:16.8]} 40... Kxg6
{[%clk 0:00:34]} 41. Kf1 {[%clk 0:00:14.7]} 41... Bxf2 {[%clk 0:00:34.1]} 42.
Kxf2 {[%clk 0:00:15.6]} 42... Kf5 {[%clk 0:00:33.5]} 43. Nd4+ {[%clk 0:00:14.3]}
43... Ke4 {[%clk 0:00:31.3]} 44. Ne6 {[%clk 0:00:14]} 44... Rg6 {[%clk
0:00:24.6]} 45. Nc7 {[%clk 0:00:08.3]} 45... h5 {[%clk 0:00:20]} 46. a4 {[%clk
0:00:07.1]} 46... h4 {[%clk 0:00:19.9]} 47. b5 {[%clk 0:00:07.4]} 47... axb5
{[%clk 0:00:19.2]} 48. axb5 {[%clk 0:00:08.3]} 48... f3 {[%clk 0:00:19.7]} 49.
gxf3+ {[%clk 0:00:08.3]} 49... Ke5 {[%clk 0:00:18.6]} 50. Ne6 {[%clk 0:00:08]}
50... h3 {[%clk 0:00:18.3]} 51. f4+ {[%clk 0:00:06.3]} 51... Kxd5 {[%clk
0:00:18.3]} 52. f5 {[%clk 0:00:06.9]} 52... Rg4 {[%clk 0:00:16.4]} 53. Kf3
{[%clk 0:00:03.5]} 53... h2 {[%clk 0:00:16.5]} 54. Kxg4 {[%clk 0:00:03.4]} 54...
h1=Q {[%clk 0:00:16.9]} 55. Nf4+ {[%clk 0:00:04.3]} 55... Kc5 {[%clk 0:00:16.8]}
56. f6 {[%clk 0:00:04.2]} 56... Qh7 {[%clk 0:00:14.8]} 57. Kg5 {[%clk
0:00:02.5]} 57... Kxb5 {[%clk 0:00:14.9]} 58. Ng6 {[%clk 0:00:02.5]} 58... a5
{[%clk 0:00:14.8]} 59. Ne5 {[%clk 0:00:02.9]} 59... a4 {[%clk 0:00:14.9]} 60. f7
{[%clk 0:00:03.5]} 60... Qg7+ {[%clk 0:00:15.5]} 61. Kf5 {[%clk 0:00:04]} 61...
a3 {[%clk 0:00:15.5]} 62. Ke6 {[%clk 0:00:04.4]} 62... a2 {[%clk 0:00:15.7]} 63.
Nd7 {[%clk 0:00:03.5]} 63... a1=Q {[%clk 0:00:15.3]} 64. f8=Q {[%clk 0:00:04]}
64... Qxf8 {[%clk 0:00:15.3]} 65. Nxf8 {[%clk 0:00:04.3]} 65... Qe1+ {[%clk
0:00:16]} 66. Kf6 {[%clk 0:00:03.9]} 66... Kc6 {[%clk 0:00:16.9]} 67. Ne6 {[%clk
0:00:04]} 67... Qf2+ {[%clk 0:00:17.2]} 68. Ke5 {[%clk 0:00:04.2]} 68... Qe3+
{[%clk 0:00:16.9]} 69. Kf6 {[%clk 0:00:04.6]} 69... Kd6 {[%clk 0:00:17.1]} 70.
Ng5 {[%clk 0:00:05.1]} 70... Qe5+ {[%clk 0:00:17.2]} 71. Kg6 {[%clk 0:00:05.3]}
71... Ke7 {[%clk 0:00:17]} 72. Nh7 {[%clk 0:00:05.4]} 72... Qg3+ {[%clk
0:00:16.8]} 73. Kh5 {[%clk 0:00:04.3]} 73... Qh3+ {[%clk 0:00:15.2]} 74. Kg6
{[%clk 0:00:04.8]} 74... Qg4+ {[%clk 0:00:15.6]} 75. Ng5 {[%clk 0:00:05.3]}
75... Qg3 {[%clk 0:00:14.9]} 76. Kf5 {[%clk 0:00:05.6]} 76... Qd6 {[%clk
0:00:13.7]} 77. Ne4 {[%clk 0:00:05.6]} 77... Qd5+ {[%clk 0:00:13.7]} 78. Kf4
{[%clk 0:00:06.2]} 78... Ke6 {[%clk 0:00:14]} 79. Ng5+ {[%clk 0:00:06.7]} 79...
Kd6 {[%clk 0:00:12.8]} 80. Ne4+ {[%clk 0:00:07.6]} 80... Ke7 {[%clk 0:00:09.7]}
81. Ng5 {[%clk 0:00:07.5]} 81... Qd4+ {[%clk 0:00:08.9]} 82. Kf5 {[%clk
0:00:07.4]} 82... Qh4 {[%clk 0:00:07.2]} 83. Ne4 {[%clk 0:00:07]} 83... Kd7
{[%clk 0:00:07.1]} 84. Ke5 {[%clk 0:00:07.2]} 84... Qg4 {[%clk 0:00:06.1]} 85.
Nf6+ {[%clk 0:00:07.2]} 85... Ke7 {[%clk 0:00:06.6]} 86. Nxg4 {[%clk 0:00:08.1]}
1/2-1/2